bitfinex/quotes_SOLUSD_20240625
["timestamp","ask_amount","ask_price","bid_price","bid_amount"]
[1719351028226,10.1191857,137.86,137.81,23.98119512]
[1719351029024,10.1191857,137.86,137.81,15.3336]
[1719351030237,7.07,137.85,137.81,15.3336]
[1719351030421,10.1191857,137.84,137.81,15.3336]
[1719351031321,3.0491857,137.83,137.81,15.3336]
[1719351031661,7.07,137.84,137.81,15.3336]
[1719351031820,3.0491857,137.88,137.82,0.17]
[1719351032136,7.07,137.87,137.82,0.17]
[1719351032318,23.0491857,137.86,137.82,0.17]
[1719351032518,3.0491857,137.85,137.82,0.17]
[1719351035115,3.0491857,137.86,137.82,0.17]
[1719351036237,3.0491857,137.85,137.78,6.3598]
[1719351036442,3.0491857,137.85,137.77,15.0246]
[1719351036443,7.07,137.82,137.77,15.0246]
[1719351036635,3.0491857,137.81,137.77,15.0246]
[1719351038242,17.3756857,137.81,137.77,15.0246]
[1719351038545,23.0491857,137.8,137.75,6.5459]
[1719351038764,23.0491857,137.8,137.75,13.6159]
[1719351038943,23.0491857,137.8,137.75,6.5459]
[1719351039253,23.0491857,137.8,137.75,13.6159]
[1719351039431,30.1191857,137.8,137.74,403.08]
[1719351039630,30.1191857,137.8,137.75,0.34]
[1719351040453,30.1191857,137.8,137.75,0.17]
[1719351040623,30.1191857,137.8,137.74,403.08]
[1719351041342,7.07,137.79,137.74,16.21]
[1719351041548,3.0491857,137.78,137.74,16.21]
[1719351046026,10.1191857,137.78,137.74,16.21]
[1719351046350,10.1191857,137.78,137.7,22.1201]
[1719351046549,10.1191857,137.78,137.73,7.07]
[1719351046938,10.1191857,137.78,137.72,7.07]
[1719351047150,10.1191857,137.78,137.73,0.17]
[1719351048832,7.07,137.77,137.71,0.17]
[1719351049027,3.0491857,137.76,137.71,7.41]
[1719351049245,10.1191857,137.76,137.71,0.34]
[1719351049949,7.07,137.76,137.71,0.34]
[1719351052452,10.1191857,137.77,137.71,0.34]
[1719351052753,3.0491857,137.76,137.71,7.41]
[1719351052954,3.0491857,137.76,137.71,0.34]
[1719351053131,3.0491857,137.76,137.71,0.17]
[1719351056657,10.1191857,137.74,137.7,0.17]
[1719351056857,3.0491857,137.73,137.69,0.34]
[1719351057057,3.0491857,137.73,137.69,1.46006322]
[1719351057255,3.0491857,137.73,137.69,1.12006322]
[1719351057558,3.0491857,137.73,137.68,7.07]
[1719351057768,3.0491857,137.73,137.69,1.16699799]
[1719351057941,3.0491857,137.73,137.68,1.16699799]
[1719351058143,3.0491857,137.73,137.68,8.23699799]
[1719351058652,3.0491857,137.73,137.69,0.17]
[1719351062548,7.07,137.74,137.7,1.16682849]
[1719351062739,3.0491857,137.74,137.7,7.07]
[1719351063839,3.0491857,137.75,137.7,7.07]
[1719351066164,3.0491857,137.76,137.71,1.16674375]
[1719351066367,3.0491857,137.76,137.72,0.17]
[1719351066755,10.1191857,137.76,137.71,1.16674375]
[1719351066957,27.07,137.75,137.7,0.17]
[1719351067168,10.1191857,137.74,137.69,0.34]
[1719351067472,10.1191857,137.74,137.69,1.50830117]
[1719351068571,3.0491857,137.74,137.69,8.57830117]
[1719351069250,3.0491857,137.74,137.69,1.50830117]
[1719351069577,3.0491857,137.74,137.69,7.41]
[1719351069782,3.0491857,137.74,137.7,1.16813149]
[1719351072154,3.0491857,137.74,137.69,1.33816696]
[1719351072776,10.1191857,137.74,137.69,1.33816696]
[1719351073083,3.0491857,137.73,137.69,1.33816696]
[1719351073658,3.0491857,137.73,137.69,7.24]
[1719351074170,3.0491857,137.74,137.69,7.24]
[1719351078067,10.3092857,137.74,137.69,7.24]
[1719351078265,3.0491857,137.73,137.69,7.24]
[1719351078584,3.0491857,137.73,137.69,0.17]
[1719351078764,10.1191857,137.73,137.69,0.17]
[1719351078965,17.3800857,137.73,137.68,1.16816696]
[1719351079179,7.07,137.72,137.67,0.17]
[1719351079385,3.0491857,137.71,137.67,0.34]
[1719351083684,3.0491857,137.71,137.68,7.07]
[1719351083884,3.0491857,137.72,137.68,7.07]
[1719351084182,3.0491857,137.72,137.67,0.34]
[1719351084183,10.1191857,137.72,137.67,0.34]
[1719351084372,3.0491857,137.72,137.67,0.34]
[1719351084881,10.1191857,137.72,137.67,0.34]
[1719351085191,3.0491857,137.72,137.68,0.17]
[1719351085485,3.0491857,137.72,137.66,7.41]
[1719351086184,3.0491857,137.72,137.66,0.34]
[1719351086389,3.0491857,137.72,137.66,7.41]
[1719351086686,3.0491857,137.72,137.66,0.34]
[1719351086888,3.0491857,137.72,137.67,0.17]
[1719351087189,3.0491857,137.72,137.67,0.34]
[1719351089189,7.07,137.72,137.67,0.34]
[1719351089392,3.0491857,137.71,137.67,0.34]
[1719351092394,3.0491857,137.71,137.67,0.17]
[1719351092992,10.1191857,137.72,137.67,0.17]
[1719351093603,3.0491857,137.72,137.67,7.24]
[1719351095796,3.0491857,137.72,137.67,0.17]
[1719351096005,10.1191857,137.72,137.67,0.17]
[1719351096185,3.0491857,137.71,137.66,0.34]
[1719351100202,7.07,137.7,137.64,20.0]
[1719351101288,7.07,137.7,137.63,22.8226]
[1719351101790,3.0491857,137.69,137.63,15.7526]
[1719351101977,10.1191857,137.69,137.63,22.8226]
[1719351103181,10.1191857,137.69,137.64,0.17]
[1719351103594,3.0491857,137.73,137.66,7.07]
[1719351103778,3.0491857,137.73,137.68,7.07]
[1719351103983,3.0491857,137.73,137.69,0.34]
[1719351104185,3.0491857,137.73,137.68,7.07]
[1719351104693,3.0491857,137.73,137.69,0.17]
[1719351104987,3.0491857,137.73,137.69,0.34]
[1719351105489,3.0491857,137.73,137.68,7.07]
[1719351105796,3.0491857,137.73,137.69,0.17]
[1719351106874,20.0,137.75,137.7,7.07]
[1719351107091,3.0491857,137.77,137.71,0.34]
[1719351107417,23.0491857,137.77,137.72,7.24]
[1719351107589,23.0491857,137.77,137.73,0.17]
[1719351107910,30.1191857,137.77,137.73,0.17]
[1719351108321,30.1191857,137.77,137.72,0.34]
[1719351109121,10.1191857,137.77,137.72,0.34]
[1719351109409,3.0491857,137.76,137.72,0.34]
[1719351109782,10.1191857,137.77,137.72,0.34]
[1719351109978,3.0491857,137.77,137.72,7.41]
[1719351110206,10.1191857,137.77,137.72,0.34]
[1719351110693,3.0491857,137.77,137.72,0.34]
[1719351111411,10.1191857,137.77,137.71,7.41]
[1719351111706,3.0491857,137.77,137.71,7.41]
[1719351111910,10.1191857,137.77,137.71,7.41]
[1719351113003,3.0491857,137.77,137.72,7.07]
[1719351113188,3.0491857,137.77,137.73,0.17]
[1719351118395,10.1191857,137.77,137.73,0.17]
[1719351119220,3.0491857,137.77,137.73,0.17]
[1719351119517,14.3279,137.78,137.73,0.17]
[1719351119703,3.0491857,137.77,137.73,0.17]
[1719351120287,3.0491857,137.77,137.73,16.4564]
[1719351120514,7.2575,137.79,137.73,23.5264]
[1719351120811,23.0491857,137.78,137.73,23.5264]
[1719351121192,23.0491857,137.78,137.73,16.4564]
[1719351121395,7.2597,137.75,137.69,36.2864]
[1719351121600,3.0491857,137.75,137.7,7.24]
[1719351121819,3.0491857,137.76,137.71,7.07]
[1719351122000,3.0491857,137.76,137.72,0.17]
[1719351123898,10.1191857,137.76,137.72,0.17]
[1719351124128,17.3781857,137.76,137.71,0.34]
[1719351124827,3.0491857,137.76,137.71,7.41]
[1719351125013,10.3082857,137.76,137.71,0.34]
[1719351125327,10.3082857,137.76,137.71,7.07]
[1719351127330,10.3082857,137.76,137.7,7.41]
[1719351127516,17.3782857,137.76,137.7,7.41]
[1719351127717,17.3782857,137.76,137.7,0.34]
[1719351129233,10.3082857,137.76,137.7,0.34]
[1719351129417,17.3782857,137.76,137.7,0.34]
[1719351129817,7.07,137.75,137.7,0.34]
[1719351130311,10.1191857,137.74,137.7,0.17]
[1719351130525,7.07,137.73,137.67,12.95728633]
[1719351130732,7.07,137.73,137.68,20.34]
[1719351131223,3.0491857,137.74,137.68,20.34]
[1719351131421,7.07,137.73,137.68,20.34]
[1719351132217,3.0491857,137.74,137.68,20.34]
[1719351132422,7.07,137.73,137.68,20.34]
[1719351133037,3.0491857,137.74,137.68,20.34]
[1719351133215,7.07,137.73,137.68,20.34]
[1719351133410,7.07,137.73,137.68,0.34]
[1719351133633,3.0491857,137.72,137.68,0.34]
[1719351134222,2.5491857,137.72,137.68,0.34]
[1719351134540,2.5491857,137.72,137.68,0.84069598]
[1719351135245,2.5491857,137.74,137.68,0.84069598]
[1719351136339,7.07,137.73,137.68,0.84069598]
[1719351136539,2.5491857,137.72,137.68,0.84069598]
[1719351136922,2.5491857,137.72,137.68,7.91069598]
[1719351139340,2.5491857,137.72,137.68,0.84069598]
[1719351139643,2.5491857,137.72,137.68,0.34]
[1719351139828,2.5491857,137.72,137.68,0.67710337]
[1719351140841,2.5491857,137.74,137.68,0.67710337]
[1719351141020,7.07,137.73,137.68,0.67710337]
[1719351141221,9.6191857,137.73,137.68,0.67710337]
[1719351141838,2.5491857,137.73,137.68,7.74710337]
[1719351143022,9.6191857,137.74,137.68,7.74710337]
[1719351143222,2.5491857,137.73,137.68,7.74710337]
[1719351143545,9.6191857,137.73,137.68,0.67710337]
[1719351143731,9.6191857,137.73,137.68,0.17]
[1719351144942,2.5491857,137.74,137.68,7.24]
[1719351145133,9.6191857,137.74,137.69,16.00042693]
[1719351145336,2.5491857,137.73,137.7,0.17]
[1719351145530,2.5491857,137.77,137.71,7.07]
[1719351145737,2.5491857,137.77,137.72,7.91757946]
[1719351145947,2.5491857,137.77,137.72,7.74757946]
[1719351146745,2.5491857,137.78,137.73,0.5075426]
[1719351146945,7.07,137.77,137.73,0.5075426]
[1719351147134,2.5491857,137.77,137.72,7.24]
[1719351147334,2.5491857,137.77,137.73,0.50888225]
[1719351153546,9.8058857,137.81,137.75,7.07]
[1719351153853,16.8758857,137.81,137.75,7.07]
[1719351154828,20.0,137.8,137.72,15.4034]
[1719351155030,7.07,137.77,137.72,15.4034]
[1719351155229,2.5491857,137.76,137.72,15.4034]
[1719351155426,2.5491857,137.76,137.72,22.4734]
[1719351160533,2.5491857,137.76,137.72,15.4034]
[1719351160738,7.2599,137.75,137.72,15.4034]
[1719351161042,2.5491857,137.74,137.72,15.4034]
[1719351162051,2.5491857,137.75,137.72,15.4034]
[1719351163043,9.8086857,137.75,137.72,15.4034]
[1719351163953,2.5491857,137.75,137.72,15.4034]
[1719351164177,2.5491857,137.76,137.72,15.4034]
[1719351165252,9.8081857,137.76,137.72,15.4034]
[1719351165661,16.8781857,137.76,137.72,15.4034]
[1719351166545,9.6191857,137.76,137.72,15.4034]
[1719351166753,14.3296,137.75,137.72,15.4034]
[1719351167047,2.5491857,137.74,137.72,15.4034]
[1719351169564,9.8086857,137.75,137.7,2.47972122]
[1719351169765,16.8786857,137.75,137.7,2.47972122]
[1719351169959,7.07,137.74,137.7,2.47972122]
[1719351171168,16.8786857,137.75,137.7,2.47972122]
[1719351171352,9.6191857,137.75,137.7,2.47972122]
[1719351181173,2.5491857,137.75,137.7,2.47972122]
[1719351181352,2.5491857,137.75,137.7,9.54972122]
[1719351185355,2.5491857,137.75,137.7,2.47972122]
[1719351186696,7.07,137.76,137.71,2.47954191]
[1719351186875,2.5491857,137.78,137.72,7.41]
[1719351187176,2.5491857,137.78,137.73,2.47952333]
[1719351187384,2.5491857,137.78,137.73,18.13252333]
[1719351187561,2.5491857,137.78,137.74,2.47966733]
[1719351189361,2.5491857,137.78,137.73,25.20266732]
[1719351189562,2.5491857,137.78,137.74,2.47948775]
[1719351190074,2.5491857,137.78,137.74,9.54948775]
[1719351190783,2.5491857,137.78,137.73,15.653]
[1719351190965,2.5491857,137.78,137.73,22.723]
[1719351191282,2.5491857,137.78,137.74,2.47876771]
[1719351191586,29.6191857,137.79,137.74,2.64876771]
[1719351191765,22.5491857,137.79,137.74,9.71876771]
[1719351193683,29.8066857,137.79,137.73,15.653]
[1719351193883,29.8066857,137.79,137.74,7.07]
[1719351194086,29.8066857,137.79,137.74,9.54858773]
[1719351195188,29.8066857,137.79,137.74,7.07]
[1719351195687,29.8066857,137.79,137.74,9.54858773]
[1719351196387,29.8066857,137.79,137.74,7.07]
[1719351196688,29.8066857,137.79,137.74,9.54868174]
[1719351197688,29.8066857,137.79,137.74,7.07]
[1719351197989,29.8066857,137.79,137.74,9.54814198]
[1719351199667,29.8066857,137.79,137.75,7.07]
[1719351201296,29.8066857,137.79,137.76,7.07]
[1719351201594,22.5491857,137.79,137.76,7.07]
[1719351201779,2.5491857,137.78,137.76,7.07]
[1719351203596,22.5491857,137.79,137.76,7.07]
[1719351203796,22.5491857,137.79,137.74,2.47814198]
[1719351203976,2.5491857,137.79,137.74,2.47814198]
[1719351204177,2.5491857,137.79,137.75,7.07]
[1719351204773,2.5491857,137.79,137.74,2.47814198]
[1719351205085,2.5491857,137.79,137.76,7.07]
[1719351205284,9.8066857,137.79,137.74,2.47814198]
[1719351205601,2.5491857,137.79,137.76,7.07]
[1719351205976,2.5491857,137.8,137.76,7.07]
[1719351206575,9.8063857,137.8,137.76,7.07]
[1719351206792,22.5491857,137.79,137.76,7.07]
[1719351207493,29.8065857,137.79,137.74,3.92748566]
[1719351207689,29.8065857,137.79,137.74,10.99748566]
[1719351207884,2.5491857,137.78,137.74,10.99748566]
[1719351209672,2.5491857,137.78,137.74,3.92748566]
[1719351209881,7.07,137.77,137.71,3.92805605]
[1719351210100,2.5491857,137.76,137.71,7.07]
[1719351211800,2.5491857,137.76,137.71,10.99823057]
[1719351216811,2.5491857,137.76,137.71,3.92823057]
[1719351216985,2.5491857,137.76,137.71,10.99823057]
[1719351218205,9.6191857,137.76,137.71,10.99823057]
[1719351220897,9.6191857,137.76,137.71,3.92823057]
[1719351221091,16.8781857,137.76,137.71,3.92823057]
[1719351221294,7.07,137.75,137.7,15.6116]
[1719351221485,2.5491857,137.74,137.7,15.6116]
[1719351221691,2.5491857,137.74,137.7,19.53907514]
[1719351222198,9.6191857,137.75,137.71,3.92718994]
[1719351222812,2.5491857,137.75,137.71,3.92718994]
[1719351225294,9.6191857,137.75,137.71,3.92718994]
[1719351236311,9.6191857,137.75,137.7,3.92719027]
[1719351236499,9.6191857,137.75,137.71,0.17]
[1719351236698,9.6191857,137.75,137.71,4.09690509]
[1719351237516,7.07,137.73,137.68,3.92747615]
[1719351237747,9.6191857,137.72,137.66,7.07]
[1719351238013,9.6191857,137.72,137.67,3.92702731]
[1719351238616,2.5491857,137.71,137.67,3.92702731]
[1719351239118,2.5491857,137.71,137.68,0.17]
[1719351239501,2.5491857,137.71,137.67,3.92702731]
[1719351241127,2.5491857,137.71,137.66,0.34]
[1719351241294,2.5491857,137.71,137.66,7.07]
[1719351243124,7.07,137.72,137.66,7.07]
[1719351243333,2.5491857,137.71,137.67,3.92666466]
[1719351245905,2.5491857,137.71,137.66,7.07]
[1719351247424,2.5491857,137.71,137.65,11.33666466]
[1719351247425,7.07,137.7,137.65,11.33666466]
[1719351248126,9.6191857,137.71,137.65,11.33666466]
[1719351249225,2.5491857,137.71,137.65,11.33666466]
[1719351249428,7.07,137.71,137.65,11.33666466]
[1719351250429,7.07,137.71,137.65,4.26666466]
[1719351250917,7.07,137.71,137.65,11.33666466]
[1719351251115,2.5491857,137.72,137.65,4.26666466]
[1719351251317,2.5491857,137.72,137.67,7.07]
[1719351251718,2.5491857,137.72,137.68,0.17]
[1719351251921,2.5491857,137.72,137.68,4.16700102]
[1719351254132,2.5491857,137.72,137.66,7.07]
[1719351254439,2.5491857,137.72,137.67,11.0664204]
[1719351254630,2.5491857,137.72,137.68,0.17]
[1719351256933,2.5491857,137.72,137.68,4.16613036]
[1719351259823,2.5491857,137.72,137.68,0.17]
[1719351260030,2.5491857,137.72,137.68,4.16546893]
[1719351260435,2.5491857,137.72,137.68,0.17]
[1719351261220,2.5491857,137.72,137.67,4.33488896]
[1719351261433,7.07,137.71,137.67,0.17]
[1719351261640,2.5491857,137.7,137.66,3.99488928]
[1719351262038,2.5491857,137.71,137.67,7.07]
[1719351262323,2.5491857,137.71,137.68,0.17]
[1719351262635,2.5491857,137.71,137.67,4.33530715]
[1719351263231,9.6191857,137.72,137.67,4.33530715]
[1719351263446,9.6191857,137.72,137.67,0.34]
[1719351263746,2.5491857,137.72,137.67,0.34]
[1719351264047,9.6191857,137.72,137.66,0.34]
[1719351264423,9.6191857,137.72,137.66,2.2226972]
[1719351264625,2.5491857,137.72,137.66,9.2926972]
[1719351265548,2.5491857,137.72,137.66,2.2226972]
[1719351265742,2.5491857,137.72,137.66,9.2926972]
[1719351265934,2.5491857,137.72,137.66,2.2226972]
[1719351266135,2.5491857,137.72,137.66,9.2926972]
[1719351268940,2.5491857,137.72,137.67,7.07]
[1719351269148,2.5491857,137.72,137.68,2.05242371]
[1719351271648,2.5491857,137.72,137.68,0.17]
[1719351272039,2.5491857,137.72,137.67,0.17]
[1719351272348,9.8103857,137.72,137.67,0.17]
[1719351272552,9.8103857,137.72,137.66,2.05334398]
[1719351274956,9.8103857,137.72,137.66,0.17]
[1719351275252,9.8103857,137.72,137.66,0.34]
[1719351277932,2.5491857,137.72,137.66,0.34]
[1719351278132,2.5491857,137.72,137.66,7.41]
[1719351278334,2.5491857,137.72,137.67,1.88307083]
[1719351279546,7.07,137.71,137.66,2.22307083]
[1719351279860,2.5491857,137.7,137.66,2.22307083]
[1719351280648,2.5491857,137.71,137.66,2.22307083]
[1719351281549,2.5491857,137.71,137.66,0.34]
[1719351281737,9.6191857,137.71,137.66,0.34]
[1719351282057,2.5491857,137.7,137.66,0.34]
[1719351282958,2.5491857,137.71,137.66,0.34]
[1719351285368,7.07,137.71,137.66,0.34]
[1719351285537,2.5491857,137.7,137.66,0.34]
[1719351288556,2.5491857,137.71,137.66,7.41]
[1719351288859,2.5491857,137.71,137.67,1.88279771]
[1719351289157,2.5491857,137.71,137.67,8.95279771]
[1719351289558,2.5491857,137.72,137.67,8.95279771]
[1719351289741,2.5491857,137.72,137.67,7.07]
[1719351290458,2.5491857,137.72,137.66,2.22252483]
[1719351290665,2.5491857,137.72,137.67,7.07]
[1719351291791,9.6191857,137.72,137.66,0.34]
[1719351291943,9.6191857,137.72,137.66,2.31627192]
[1719351292144,2.5491857,137.72,137.66,9.38627192]
[1719351292356,2.5491857,137.72,137.67,7.07]
[1719351294053,2.5491857,137.72,137.66,9.38627192]
[1719351295851,2.5491857,137.72,137.66,9.38627192]
[1719351296764,9.6191857,137.72,137.66,2.31627192]
[1719351296972,9.6191857,137.72,137.66,2.31627198]
[1719351298871,2.5491857,137.72,137.67,7.07]
[1719351301770,2.5491857,137.72,137.66,2.31627198]
[1719351307774,2.5491857,137.73,137.67,7.07]
[1719351307958,21.433,137.74,137.69,7.07]
[1719351308157,7.07,137.75,137.7,1.97608984]
[1719351308780,14.3294,137.76,137.7,1.97608984]
[1719351308961,7.07,137.74,137.7,1.97608984]
[1719351309168,2.5491857,137.74,137.69,1.97608984]
[1719351309373,2.5491857,137.74,137.7,0.17]
[1719351310148,9.6191857,137.75,137.7,0.17]
[1719351310580,16.8786857,137.75,137.7,0.17]
[1719351310757,9.8086857,137.75,137.7,0.17]
[1719351311577,9.8086857,137.75,137.67,17.8753334]
[1719351311578,2.5491857,137.75,137.67,17.8753334]
[1719351311894,7.07,137.73,137.67,17.8753334]
[1719351312053,14.3305,137.73,137.68,1.97608989]
[1719351312390,7.2605,137.73,137.69,0.17]
[1719351312671,9.8096857,137.73,137.69,0.17]
[1719351313078,2.5491857,137.73,137.69,0.17]
[1719351313279,22.5491857,137.73,137.69,0.17]
[1719351314478,29.8098857,137.73,137.69,0.17]
[1719351320861,22.5491857,137.73,137.69,0.17]
[1719351321061,20.0,137.73,137.69,7.41]
[1719351321274,20.0,137.73,137.7,1.97580287]
[1719351322401,20.0,137.73,137.69,2.31580287]
[1719351323179,29.8098857,137.73,137.69,2.31580287]
[1719351323392,36.8798857,137.73,137.69,0.17]
[1719351323562,7.2611,137.72,137.68,1.97677048]
[1719351323763,9.6191857,137.71,137.68,1.97677049]
[1719351324180,9.6191857,137.71,137.67,17.87599071]
[1719351324383,16.8809857,137.71,137.64,1.97699895]
[1719351324597,16.8809857,137.71,137.65,7.07]
[1719351324803,14.3318,137.71,137.66,1.97671172]
[1719351325265,9.8103857,137.72,137.67,0.17]
[1719351325579,7.07,137.71,137.67,0.17]
[1719351325786,7.07,137.71,137.67,0.34]
[1719351330685,18.1489,137.75,137.67,0.34]
[1719351330686,2.5491857,137.74,137.68,17.17142457]
[1719351330888,22.5491857,137.76,137.69,0.34]
[1719351331066,7.07,137.74,137.69,0.34]
[1719351331271,9.6191857,137.74,137.69,0.34]
[1719351331966,34.3291,137.76,137.7,7.07]
[1719351332175,20.0,137.76,137.71,0.34]
[1719351333077,2.5491857,137.75,137.71,0.34]
[1719351336805,9.8087857,137.75,137.71,0.34]
[1719351336967,16.8787857,137.75,137.71,0.34]
[1719351338196,9.8087857,137.75,137.71,0.34]
[1719351338372,9.6191857,137.75,137.7,0.34]
[1719351338576,2.5491857,137.75,137.7,0.34]
[1719351338769,9.6191857,137.75,137.7,0.34]
[1719351339986,13.01965247,137.81,137.71,15.7015]
[1719351340196,14.3277,137.79,137.72,7.41]
[1719351340499,14.3277,137.79,137.72,0.34]
[1719351340707,14.3277,137.79,137.73,7.07]
[1719351341012,9.6191857,137.78,137.72,7.24]
[1719351341183,9.6191857,137.78,137.73,0.17]
[1719351342000,7.07,137.76,137.72,0.17]
[1719351342177,7.07,137.76,137.72,0.34]
[1719351342805,9.6191857,137.76,137.72,0.34]
[1719351343799,9.6191857,137.76,137.72,2.73738558]
[1719351344984,7.07,137.76,137.72,2.73738558]
[1719351350914,7.07,137.8,137.72,2.73738558]
[1719351351229,29.6191857,137.79,137.73,7.07]
[1719351351399,29.6191857,137.79,137.74,2.73703747]
[1719351351599,22.5491857,137.79,137.74,2.73703747]
[1719351352208,22.5491857,137.79,137.74,2.56703747]
[1719351352415,7.07,137.77,137.72,2.39728124]
[1719351352601,7.07,137.77,137.73,0.17]
[1719351352800,7.07,137.78,137.73,0.17]
[1719351353007,2.5491857,137.77,137.73,0.17]
[1719351353305,2.5491857,137.77,137.72,9.46728124]
[1719351356814,2.5491857,137.77,137.72,2.39728124]
[1719351357196,2.5491857,137.77,137.72,9.46728124]
[1719351358918,7.07,137.78,137.73,15.6191]
[1719351358919,2.5491857,137.78,137.73,15.6191]
[1719351359223,2.5491857,137.78,137.74,2.73693315]
[1719351361324,9.6191857,137.78,137.73,15.6191]
[1719351362118,7.07,137.77,137.73,15.6191]
[1719351363227,9.8074857,137.78,137.73,15.6191]
[1719351363420,7.07,137.77,137.73,15.6191]
[1719351364021,9.6191857,137.76,137.72,2.39829305]
[1719351364212,9.6191857,137.76,137.71,2.39954953]
[1719351364402,7.07,137.75,137.71,2.39954953]
[1719351365501,2.5491857,137.74,137.7,23.90445011]
[1719351365706,9.6191857,137.74,137.7,15.0464]
[1719351367818,9.6191857,137.74,137.69,2.57038804]
[1719351368020,9.6191857,137.74,137.69,0.17]
[1719351368721,7.07,137.73,137.69,0.17]
[1719351368914,9.6191857,137.73,137.69,0.17]
[1719351369231,7.07,137.73,137.69,0.17]
[1719351369532,7.07,137.74,137.69,0.17]
[1719351369734,2.5491857,137.73,137.69,0.17]
[1719351371221,2.5491857,137.73,137.68,2.40038804]
[1719351371222,9.6191857,137.73,137.68,2.40038804]
[1719351371531,7.07,137.72,137.67,23.4015]
[1719351371734,7.07,137.72,137.68,0.17]
[1719351372133,7.07,137.7,137.64,6.4184]
[1719351372338,2.5491857,137.69,137.64,13.4884]
[1719351373330,2.5491857,137.69,137.62,15.1465]
[1719351373524,2.5491857,137.69,137.64,7.07]
[1719351373911,22.5491857,137.71,137.65,1.45041287]
[1719351374115,9.6191857,137.7,137.65,1.45041287]
[1719351374362,9.6191857,137.7,137.65,8.52041287]
[1719351374721,9.6191857,137.7,137.65,1.45041287]
[1719351374921,2.5491857,137.7,137.65,7.07]
[1719351375128,9.6191857,137.7,137.64,8.86009678]
[1719351376832,9.6191857,137.7,137.64,8.69009678]
[1719351377141,2.5491857,137.7,137.64,8.69009678]
[1719351377315,9.6191857,137.7,137.64,8.69009678]
[1719351379844,16.8812857,137.7,137.64,8.69009678]
[1719351380141,16.8812857,137.7,137.64,1.62009678]
[1719351380340,7.07,137.69,137.64,0.17]
[1719351380536,2.5491857,137.68,137.64,0.17]
[1719351388550,2.5491857,137.7,137.64,0.17]
[1719351388727,2.5491857,137.7,137.65,7.07]
[1719351388919,2.5491857,137.7,137.66,1.79567898]
[1719351390641,2.5491857,137.7,137.66,0.34]
[1719351394334,2.5491857,137.7,137.66,7.41]
[1719351394750,2.5491857,137.71,137.66,7.41]
[1719351396137,36.8802857,137.72,137.67,1.45885499]
[1719351396867,7.2616,137.71,137.67,1.45885499]
[1719351397044,9.8107857,137.71,137.66,7.41]
[1719351399052,9.8107857,137.71,137.66,0.34]
[1719351399359,2.5491857,137.71,137.66,7.41]
[1719351400225,2.5491857,137.71,137.67,2.8224229]
[1719351401762,2.5491857,137.71,137.66,7.41]
[1719351401942,2.5491857,137.71,137.67,2.82160284]
[1719351402953,2.5491857,137.71,137.66,7.41]
[1719351403253,2.5491857,137.71,137.67,2.82240941]
[1719351405335,2.5491857,137.71,137.66,7.41]
[1719351405535,2.5491857,137.71,137.67,2.82240978]
[1719351406557,2.5491857,137.71,137.66,7.41]
[1719351406858,2.5491857,137.71,137.67,2.82200353]
[1719351409061,9.6191857,137.71,137.67,2.82200353]
[1719351409266,9.6191857,137.71,137.66,3.16200353]
[1719351413062,9.6191857,137.71,137.66,4.60886477]
[1719351421788,2.5491857,137.71,137.66,4.60886477]
[1719351422254,9.6191857,137.71,137.66,4.60886477]
[1719351422670,29.6191857,137.72,137.66,4.60886477]
[1719351422877,29.6191857,137.72,137.66,7.41]
[1719351423054,29.6191857,137.72,137.67,4.26855468]
[1719351423278,29.6191857,137.72,137.68,0.17]
[1719351425774,36.8802857,137.72,137.68,0.17]
[1719351425995,29.6191857,137.72,137.68,0.17]
[1719351427283,36.8802857,137.72,137.68,0.17]
[1719351428480,29.8102857,137.72,137.68,0.17]
[1719351428870,36.8802857,137.72,137.68,0.17]
[1719351429788,7.07,137.71,137.68,0.17]
[1719351430009,9.6191857,137.71,137.68,0.17]
[1719351430204,2.5491857,137.71,137.67,4.43806575]
[1719351430683,29.8102857,137.72,137.67,4.43806575]